Cogmind - Beta 11.1 @@@ ROGUE MODE // 2022.06.27 @ 10:51:43 Player: s0lid Result: Destroyed by as-70574 with Assembled Rifle Performance ------------- Evolutions (0) 0 Regions Visited (2) 400 Robots Destroyed (26) 130 Value Destroyed (383) 383 Prototype IDs (4) 80 Alien Tech Used (0) 0 Bonus (0) 0 TOTAL SCORE: 993 Bonus ------- None Cogmind --------- Core Integrity 0/250 Matter 290/300 Energy 73/100 System Corruption 8% Temperature Cool (20) Movement Treading (160) Location -10/Mines Parts ------- > --- POWER (1) -------- (None) > --- PROPULSION (2) --- Improved Treads > --- UTILITY (2) ------ Large Storage Unit Hacking Suite > --- WEAPON (2) ------- (None) > --- INVENTORY (15) --- Light Ion Engine Improved Treads High-capacity Matter Pod (200) High-capacity Matter Pod (200) High-capacity Matter Pod (116) High-capacity Matter Pod (0) Targeting Computer Targeting Computer Targeting Computer Targeting Computer Rocket Launcher Datajack Mining Laser Heavy Hammer Peak State ------------ > --- POWER ------------ Ion Engine > --- PROPULSION ------- Improved Treads Improved Treads > --- UTILITY ---------- Large Storage Unit Hacking Suite > --- WEAPON ----------- Medium Laser Assault Rifle > --- INVENTORY -------- Light Ion Engine Improved Treads Improved Treads Wheel Compact Wheel High-capacity Storage Unit High-capacity Matter Pod High-capacity Matter Pod High-capacity Matter Pod High-capacity Matter Pod High-capacity Matter Pod Light Assault Rifle Rocket Launcher Mining Laser Heavy Hammer [Rating: 12] Favorites ----------- Power Ion Engine Engine Ion Engine Propulsion Improved Treads Treads Improved Treads Wheel Wheel Utility Large Storage Unit Device Seismic Detector Storage Large Storage Unit Processor Visual Processing Unit Hackware Hacking Suite Weapon Medium Laser Energy Gun Medium Laser Ballistic Gun Assault Rifle Build | -11 -10 -10 ------- Run | Scr Mat Min Slots Evolved . | . . . Power . | . . . Propulsion . | . . . Utility . | . . . Weapon . | . . . Parts Attached 20 | 8 10 2 Power 2 | 1 1 . Engine 2 | 1 1 . Core . | . . . Reactor . | . . . Propulsion 8 | 2 4 2 Treads 6 | 1 3 2 Leg . | . . . Wheel 2 | 1 1 . Hover . | . . . Flight . | . . . Utility 7 | 2 5 . Device 1 | 1 . . Storage 4 | 1 3 . Processor 1 | . 1 . Hackware 1 | . 1 . Protection . | . . . Artifact . | . . . Weapon 3 | 3 . . Energy Gun 1 | 1 . . Energy Cannon . | . . . Ballistic Gun 2 | 2 . . Ballistic Cannon . | . . . Launcher . | . . . Special Weapon . | . . . Impact Weapon . | . . . Slashing Weapon . | . . . Piercing Weapon . | . . . Special Melee Weapon . | . . . Unidentified Prototypes . | . . . Parts Lost 6 | . 1 5 Power 2 | . 1 1 Propulsion 2 | . . 2 Utility . | . . . Weapon 2 | . . 2 Highest Loss Streak 5 | . 1 5 To Critical Strikes . | . . . Average Slot Usage (%) 99 | . 99 90 Engine 13 | . 13 12 Treads 26 | . 26 26 Wheel 1 | . 1 . Device 1 | . 1 . Storage 14 | . 14 14 Processor 7 | . 8 . Hackware 4 | . 4 14 Energy Gun 13 | . 14 12 Ballistic Gun 13 | . 14 9 Naked Turns . | . . . Heaviest Build 49 | 15 49 29 Greatest Support 46 | 10 46 46 Greatest Overweight (x) 3 | 1 3 1 Average Overweight (x) . | . . . Largest Inventory Capacity 20 | 8 20 15 Average Capacity 13 | 7 13 15 Most Carried 15 | 7 15 15 Average Carried 12 | 5 12 14 Final Capacity 15 | 8 15 15 Final Carried 15 | 6 15 14 Class Distribution -------------------- 100% | Mutant Dominant Class ---------------- Mutant | -10/Materials Mutant | -10/Mines Resources | -11 -10 -10 ----------- Run | Scr Mat Min Matter Collected 1097 | 291 728 78 Remotely . | . . . Salvage Created 723 | 80 592 51 Parts 40 | 2 35 3 Haulers Intercepted 2 | . 2 . Recyclers Shooed 1 | . 1 . Parts Field Recycled . | . . . Retrieved Matter . | . . . Parts Self-Destructed . | . . . Prevented . | . . . Kills | -11 -10 -10 ------- Run | Scr Mat Min Combat Hostiles Destroyed 16 | . 13 3 Guns 16 | . 13 3 Classes Destroyed 7 | 2 5 . Tunneler 1 | 1 . . Hauler 2 | . 2 . Recycler 2 | 1 1 . Operator 2 | . 2 . Watcher 3 | . 3 . Swarmer 11 | . 8 3 Grunt 5 | . 5 . Best Kill Streak 8 | 1 8 3 Combat Bots Only 8 | . 8 3 Max Kills in Single Turn 1 | 1 1 1 Gunslinging . | . . . Exploded . | . . . Melee . | . . . Uniques/NPCs Destroyed . | . . . Combat | -11 -10 -10 -------- Run | Scr Mat Min Damage Taken 1153 | . 424 729 Core 254 | . 88 166 Absorbed by Shields . | . . . Core Remaining (%) 100 | 100 . . Volleys Fired 77 | 7 58 12 Largest 2 | 2 2 2 Hottest 70 | 70 70 70 Shots Fired 149 | 9 116 24 Gun 149 | 9 116 24 Cannon . | . . . Launcher . | . . . Special . | . . . Kinetic 77 | 7 58 12 Thermal 72 | 2 58 12 Explosive . | . . . Electromagnetic . | . . . Robot Hit Streak 17 | 2 17 5 Robot Miss Streak 4 | 1 4 2 Penetration Max . | . . . Secondary Targets 2 | . 2 . Max Gunslinging Chain 1 | . 1 . Shots Hit Robots 97 | 6 80 11 Core Hits 38 | 3 32 3 Critical Kills . | . . . Critical Parts Destroyed 1 | . 1 . Critical Strikes 5 | . 5 . Burn 4 | . 4 . Destroy 1 | . 1 . Melee Attacks . | . . . Impact . | . . . Slashing . | . . . Piercing . | . . . Sneak Attacks . | . . . Combat Hostiles . | . . . Follow-up Attacks . | . . . Damage Inflicted 1210 | 62 1013 135 Guns 1210 | 62 1013 135 Cannons . | . . . Explosions . | . . . Melee . | . . . Ramming . | . . . Kinetic 637 | 49 527 61 Thermal 573 | 13 486 74 Explosive . | . . . Electromagnetic . | . . . Impact . | . . . Slashing . | . . . Piercing . | . . . Highest Corruption 8 | . . 8 Average Corruption 6 | . . 6 Corruption Purged . | . . . Corruption Blocked . | . . . Effects 1 | . . 1 Energy Discharges 1 | . . 1 Overload Shots . | . . . Overflow Damage . | . . . Projectiles . | . . . Explosions . | . . . Melee . | . . . Knockbacks . | . . . Impact . | . . . Kinetic . | . . . Secondary . | . . . Self-Inflicted Damage . | . . . Shots . | . . . Rammed . | . . . Targets Rammed . | . . . Kicked . | . . . Crushed . | . . . Highest Temperature 105 | 18 105 99 Average Temperature 27 | 10 24 42 Received Heat Transfer 326 | . 126 200 Siege Activations . | . . . Robots Corrupted . | . . . Combat Hostiles . | . . . Parts Fried . | . . . Impact Corruptions . | . . . Robots Melted . | . . . Combat Hostiles . | . . . Parts Melted 5 | . 4 1 Heat Transferred 1998 | 37 1739 222 Parts Sabotaged . | . . . Parts Stolen . | . . . Parts Stripped . | . . . Power Chain Reactions . | . . . Missiles Intercepted . | . . . Alert | -11 -10 -10 ------- Run | Scr Mat Min Peak Influence 300 | 10 300 89 Initial 6 | . 6 4 Average 62 | 3 66 56 Maximum Alert Level 1 | . 1 . Low Security (%) 88 | 100 87 100 Level 1 11 | . 12 . Level 2 . | . . . Level 3 . | . . . Level 4 . | . . . Level 5 . | . . . High Security . | . . . Max Security . | . . . Squads Dispatched 3 | . 3 . Investigation . | . . . Extermination . | . . . Reinforcement 3 | . 3 . Assault . | . . . Garrison . | . . . Intercept . | . . . Searches Triggered . | . . . Construction Impeded . | . . . Haulers Reinforced . | . . . Active Scanning Responses . | . . . Cargo Convoy Interrupts . | . . . Stealth | -11 -10 -10 --------- Run | Scr Mat Min Distress Signals 2 | . 2 . Communications Jammed . | . . . Distress Signals . | . . . Times Spotted 35 | . 20 15 Peak Tracking Total 11 | . 3 11 Tactical Retreats 2 | . 1 1 Traps | -11 -10 -10 ------- Run | Scr Mat Min Traps Triggered 1 | . 1 . Indirectly . | . . . Trap Hack Attempts . | . . . Triggered . | . . . Disarmed 2 | . 2 . Reprogrammed . | . . . Reused . | . . . Traps Extracted . | . . . Installed . | . . . Triggered . | . . . Machines | -11 -10 -10 ---------- Run | Scr Mat Min Machines Disabled . | . . . Max in Single Turn . | . . . Machines Sabotaged . | . . . Garrisons Compromised . | . . . Overloaded Fab Kills . | . . . Hacking | -11 -10 -10 --------- Run | Scr Mat Min Machines Accessed 5 | . 5 . Terminals 5 | . 5 . Fabricators . | . . . Repair Stations . | . . . Recycling Units . | . . . Scanalyzers . | . . . Garrison Access . | . . . Total Hacks 11 | . 11 . Successful 9 | . 9 . Failed 2 | . 2 . Catastrophic . | . . . Database Lockouts . | . . . Manual 5 | . 5 . Terminals 11 | . 11 . Fabricators . | . . . Repair Stations . | . . . Recycling Units . | . . . Scanalyzers . | . . . Garrison Access . | . . . Terminal Hacks 6 | . 6 . Prototype ID Bank 2 | . 2 . Branch Access Points 1 | . 1 . Emergency Access Points 1 | . 1 . Unreport Threat 1 | . 1 . Disarm Traps 1 | . 1 . Fabricator Hacks . | . . . Repair Station Hacks . | . . . Recycling Unit Hacks . | . . . Scanalyzer . | . . . Garrison Access Hacks . | . . . Unauthorized Hacks 3 | . 3 . Terminals 3 | . 3 . Botnet 3 | . 3 . Fabricators . | . . . Repair Stations . | . . . Recycling Units . | . . . Scanalyzers . | . . . Garrison Access . | . . . Data Cores Recovered . | . . . Used . | . . . Hacking Detections 5 | . 5 . Full Trace Events . | . . . Feedback Events . | . . . Feedback Blocked . | . . . Robot Schematics Acquired . | . . . Robots Built . | . . . Authchips . | . . . Time . | . . . Total Robot Build Rating . | . . . Part Schematics Acquired . | . . . Parts Built . | . . . Authchips . | . . . Time . | . . . Total Part Build Rating . | . . . Parts Repaired . | . . . Time . | . . . Parts Recycled . | . . . Recycled Matter . | . . . Retrieved Matter . | . . . Retrieved Components . | . . . Parts Scanalyzed . | . . . Part Schematics Acquired . | . . . Parts Damaged . | . . . Bothacking | -11 -10 -10 ------------ Run | Scr Mat Min Used RIF Installer . | . . . Robots Hacked . | . . . Non-combat . | . . . Combat . | . . . Robot Hacks Applied . | . . . Relay Couplers Released . | . . . Fabnet Peak Effective % . | . . . Robots Rewired . | . . . Allies Hacked . | . . . Hacks Repelled . | . . . Allies | -11 -10 -10 -------- Run | Scr Mat Min Total Allies . | . . . Largest Group . | . . . Highest-Rated Group . | . . . Highest-Rated Ally . | . . . Total Orders . | . . . Ally Attacks . | . . . Total Damage . | . . . Kills . | . . . Allies Corrupted . | . . . Allies Melted . | . . . Intel | -11 -10 -10 ------- Run | Scr Mat Min Robot Analysis Total . | . . . Derelict Logs Recovered . | . . . Drone Launches . | . . . Drone Recoveries . | . . . Exploration | -11 -10 -10 ------------- Run | Scr Mat Min Turns Passed 2213 | 83 1959 171 Spaces Moved 1177 | 55 1041 81 Core 1 | 1 . . Treads 1112 | . 1031 81 Legs . | . . . Wheels 64 | 54 10 . Hover . | . . . Flight . | . . . Fastest Speed 50 | 50 95 160 Average Speed 156 | 90 159 161 Slowest Speed 240 | 95 160 240 Overloaded Moves . | . . . Propulsion Burnouts . | . . . Robots Hopped . | . . . Cave-ins Triggered . | . . . Exploration Rate (%) 44 | 4 93 35 Regions Visited 2 Branch Regions 1 Pre-discovered Areas 1 | . . 1 Known Exits Taken 1 | . 1 . Unknown Exits Taken 1 | 1 . . Scrap Searched 1 | . . 1 Spaces Dug . | . . . Terrain Destroyed . | . . . Melee . | . . . Projectile . | . . . AOE . | . . . Terrain Rammed . | . . . Walls Destroyed . | . . . Machines Disabled . | . . . Actions | -11 -10 -10 --------- Run | Scr Mat Min Total 1403 | 76 1231 96 Wait 87 | . 86 1 Move 1175 | 54 1040 81 Hop . | . . . Pick Up 28 | 7 21 . Fast Attach 8 | 6 2 . Attach 3 | 1 1 1 Detach 1 | . 1 . Swap 9 | 1 7 1 Drop 15 | . 15 . Fire 77 | 7 58 12 Melee . | . . . Ram . | . . . Kick . | . . . Crush . | . . . Escape Stasis . | . . . Rewire . | . . . Trap . | . . . Miscellaneous . | . . . Route ------- -11/Scrapyard -10/Materials (discovered 4 exits: [*Mat x3] / *Min) -10/Mines History --------- Turn | Location | Event 14 | -11/Scrapyard | Discovered new exit (range 16) 84 | -11/Scrapyard | Entered Materials 315 | -10/Materials | Build established: Mutant 342 | -10/Materials | Discovered new exit (range 7) 425 | -10/Materials | Destroyed 8 combat bots 659 | -10/Materials | Discovered new exit (range 5) 784 | -10/Materials | Discovered new exit (range 6) 1060 | -10/Materials | Identified exit to Mines 2043 | -10/Materials | Entered Mines 2044 | -10/Mines | Learned location of Storage (-9) 2141 | -10/Mines | Assembled infested the area 2172 | -10/Mines | Core integrity fell below 50% 2214 | -10/Mines | Destroyed by as-70574 with Assembled Rifle Last Messages --------------- 02081_ S-10 Pest destroyed. 02085_ Acquired 13 matter. 02093_ S-10 Pest destroyed. 02094_ Acquired 20 matter. 02096_ Acquired 18 matter. 02141_ ALERT: Infestation in the mines, dispatching Demolisher response squad. 02169_ Assault Rifle destroyed. 02172_ Searching scrap... 02172_ Found Lgt. Assault Rifle. 02172_ Found Beam Cannon. 02172_ Found 27 Matter. 02173_ Acquired 27 matter. 02195_ Imp. Treads destroyed. 02195_ System corrupted by crushing effect (+3). 02197_ Med. Laser destroyed. 02199_ Ion Engine destroyed. 02199_ System corrupted by crushing effect (+5). 02208_ System corrupted: Energy discharge (-31). 02210_ Imp. Treads destroyed. Map ----- +----------------------------------------------------+ | | | | | | | | | | | | | ????????????????????????????????????????????????? | | ????????????????????????????????????????????????? | | ????????????????????????????????????????????????? | | ???????????????????????????# ??????????????????? | | ?????????????????????????## ?????????????????? | | ?????????????????????????# ?????????????????? | | ????????????????????????## ?????????????????? | | ???????????????????????## ?????????????????? | | ???????????????????????# ?????????????????? | | ???????????????????????# #?????????????????? | | ????????????????????????# ##????????????????? | | ?????????????????????????# #????????????????? | | ???????????#??????????????# ?????????????????? | | ???????????# ???###???????# #?????????????????? | | ??????????? ## #?????## ##????????????????? | | ?????????? ######a #########????????? | | ?????????? #????????? | | ??????????# aa a a #????????? | | ??????????# aaa ####### #????????? | | ???????????# @aaa ##?????# #????????? | | ?????????????# ## #######??????# #### ##?? | | ?????????????????????###?????????????# #?? | | ?????????????????????????????????????## ## | | ??????????????????????????????????????# #??????? | | ??????????????????????????????????????# #???????? | | ??????????????????????????????????????# #???????? | | ??????????????????????????????????????# #???????? | | ??????????????????????????????????????#[###?????? | | ??????????????????????????????????????# ]#?????? | | ??????????????????????????????????????### ### ### | | ????????????????????????????????????????# | | ????????????????????????????????????????# ## #### | | ????????????????????????????????????????# #??#??? | | ????????????????????????????????????????# #?????? | | ????????????????????????????????????????# #??#??? | | ????????????????????????????????????????# #?? ??? | | ????????????????????????????????????????# #? #??? | | ??????????????????????????????????????### #? #??? | | ?????????????????????????????????????## ## ##?? | | ??????????????????????????????????#### ##? | | ????????????????????????????????### ## | | ????????????????????????????????# # | | ????????????????????????????????# # | | ????????????????????????????????## ## # | +----------------------------------------------------+ Best States ------------- Heat Dissipation 25 Energy Generation 10 Energy Capacity 250 Matter Stores 300 Matter Capacity 300 Sight Range 18 Terrain Scan Density 10 Evasion (%) 41 Recoil Reduction 2 Offensive Hacking 10 Item Schematics ----------------- None Robot Schematics ------------------ None Fabricated ------------ Nothing Alien Tech Used ----------------- None Achievements -------------- None Challenges ------------ None Game ------ Seed GrenadeRestorationFilter Manual? 0 Play Time 00:16:00 Cumulative 131.9 hours Start 2022.06.27 @ 10:37:21 End 2022.06.27 @ 10:51:43 Sessions 1 Manual Loads 0 Difficulty Rogue Special Mode None Game No. 129 Rogue 129 Adventurer 0 Explorer 0 Win Type - Total 0 Types 0/0/0/0/0/0/0/0/0 Lore% 29 Gallery% 56 Achievement% 35 Wizard Run 0 Options --------- ASCII 0 Keyboard 1 Movement Vi Keybinds 0 Fullscreen 2 Font 24/Smallcaps Map View 76x50 Tactical HUD 1 Map Filters NONE Filters NONE Steam 1 RUN: 5d223de2-411d-4d40-8ec0-855485287383